{"text_format":"2","workbook":"xlsx","n_sheets":1,"sheets":["tabella prezzi"],"not_rendered":{"charts":0,"images":0,"macros":0,"external_links":0,"defined_names":0,"comments":0,"pivot_tables":0},"unopened":[],"bounds":{"document_bytes":16777216,"sheet_cells":100000,"run_cost":"one","rows_first":2000,"rows_last":500,"rows_between":2000,"halvings":0,"cell_chars":16384,"cell_head_chars":4096},"cells_cut":0,"cells_raw":0,"read":"whole","date_system":"1900"}

{"sheet":"tabella prezzi","index":0,"n_rows":43,"n_cols":8,"rows_kept":43,"cut":false,"hidden":false,"merged":[[9,1,10,1],[1,0,2,0],[1,1,2,1],[1,2,2,2],[1,3,2,3],[4,0,5,0],[6,0,7,0],[9,0,11,0],[37,0,38,0],[37,1,38,1],[37,2,38,2],[37,3,38,3],[37,4,38,4],[1,6,2,6],[1,7,2,7],[37,6,38,6],[37,7,38,7],[9,2,10,2],[9,3,10,3],[9,4,10,4],[9,5,10,5],[37,5,38,5],[1,4,2,4],[1,5,2,5],[9,7,10,7],[9,6,10,6]]}
["1) Sacchi in polietilene Alta Densità (HDPE) coestruso con polietilene lineare a Bassa Densità (LLDPE)"]
["STAMPA COLORE NERO SUL SACCO","COLORE SACCO","MISURA (soffietti compresi)","PESO GR","PZ. X ROTOLO","QUANTITA’ RICHIESTA (n.)","€/CAD. SACCO ","TOTALE FORNITURA"]
[]
["Comune di Scanzorosciate","    Giallo trasparente","70x110",25,26,125060,null,{"$f":"+F4*G4","v":0}]
["Comune di Sorisole","Viola trasparente","70x100",22.5,26,192296,null,0]
[null,"Giallo trasparente","70x100",22.5,26,80548,null,0]
["Comune di San Pellegrino Terme","Giallo trasparente","70X100",22.5,26,71708,null,0]
[null,"Verde trasparente","70x100",22.5,5,13790,null,0]
["Nessuna scritta","Neutri/trasparente","70x100",22.5,26,20020,null,0]
["Comune di Costa Volpino","   Viola trasparente","70x100",22.5,26,241852,null,0]
[]
[null,"   Giallo trasparente","70x100",22.5,26,120926,null,0]
["LOGO VCS - RACCOLTA IMBALLAGGI IN PLASTICA","GIALLO","70x110",25,26,100022,null,0]
["LOGO VCS - RACCOLTA FRAZIONE SECCA UTENZE NON DOMESTICHE 2018","AZZURRO","70X110",25,26,111514,null,0]
["COMUNE DI CASAZZA - FRAZIONE SECCA UTENZE DOMESTICHE - 2018","ROSSO","50X60 (con legaccio per la chiusura)",10,13,90012,null,0]
["COMUNE DI RANZANICO - FRAZIONE SECCA UTENZE DOMESTICHE - 2018","ROSSO","50X60(con legaccio per la chiusura)",10,13,67015,null,0]
["COMUNE DI CENATE SOPRA - FRAZIONE SECCA UTENZE DOMESTICHE - 2018","ROSSO","50X60(con legaccio per la chiusura)",10,13,53001,null,0]
["COMUNE DI SPINONE AL LAGO - FRAZIONE SECCA UTENZE DOMESTICHE - 2018","ROSSO","50X60(con legaccio per la chiusura)",10,13,37011,null,0]
["COMUNE DI BERZO SAN FERMO - FRAZIONE SECCA UTENZE DOMESTICHE - 2018","ROSSO","50X60(con legaccio per la chiusura)",10,13,30004,null,0]
["Unione Media - FRAZIONE SECCA UTENZE DOMESTICHE - 2018","ROSSO","50X60(con legaccio per la chiusura)",10,13,61646,null,0]
["COMUNE DI Endine G.- FRAZIONE SECCA UTENZE DOMESTICHE - 2018","ROSSO","50X60(con legaccio per la chiusura)",10,13,90012,null,0]
["COMUNE DI ENTRATICO - FRAZIONE SECCA UTENZE DOMESTICHE - 2018","ROSSO","50X60(con legaccio per la chiusura)",10,13,36972,null,{"$f":"+F22*G22","v":0}]
["COMUNE DI GAVERINA TERME - FRAZIONE SECCA UTENZE DOMESTICHE - 2018","ROSSO","50X60(con legaccio per la chiusura)",10,13,30004,null,{"$f":"+F23*G23","v":0}]
["COMUNE DI Monasterolo del castello- FRAZIONE SECCA UTENZE DOMESTICHE -2018","ROSSO","50X60(con legaccio per la chiusura)",10,13,45006,null,{"$f":"+F24*G24","v":0}]
["COMUNE DI Pianico - FRAZIONE SECCA UTENZE DOMESTICHE - 2018","ROSSO","50X60(con legaccio per la chiusura)",10,13,35009,null,0]
["COMUNE DI CASTRO - FRAZIONE SECCA UTENZE DOMESTICHE - 2018","ROSSO","50X60(con legaccio per la chiusura)",10,13,37011,null,0]
["COMUNE DI RIVA DI SOLTO - FRAZIONE SECCA UTENZE DOMESTICHE - 2018","ROSSO","50X60(con legaccio per la chiusura)",10,13,38012,null,0]
["COMUNE DI FONTENO - FRAZIONE SECCA UTENZE DOMESTICHE - 2018","ROSSO","50X60(con legaccio per la chiusura)",10,13,36010,null,0]
["COMUNE DI SOLTO COLLINA - FRAZIONE SECCA UTENZE DOMESTICHE - 2018","ROSSO","50X60(con legaccio per la chiusura)",10,13,51688,null,0]
["COMUNE DI LOVERE- FRAZIONE SECCA UTENZE DOMESTICHE - 2018","ROSSO","50X60(con legaccio per la chiusura)",10,13,120003,null,0]
["COMUNE DI LOVERE- FRAZIONE SECCA UTENZE NON DOMESTICHE - 2018","AZZURRO","70x110",25,26,35022,null,0]
["COMUNE DI LOVERE- RACCOLTA IMBALLAGGI IN PLASTICA - 2018","GIALLO","70x110",25,26,60000,null,0]
[{"$nulls":6},"TOTALE",{"$f":"SUM(H4:H32)","v":0}]
[]
[]
[]
["2) Sacchi biodegradabili in mater-bi da Litri 10 cm. 42 x 42 soffietti compresi"]
["STAMPA COLORE NERO SUL SACCO","COLORE SACCO","MISURA (soffietti compresi)","PESO GR","PZ. X ROTOLO","QUANTITA’ RICHIESTA (n.)","€/CAD. SACCO ","TOTALE FORNITURA"]
[]
["Testo standard mater-bi con indicazione COMUNE DI LOVERE","Neutro/trasparente","42x42",21,32,20000,null,{"$f":"+F40*G40","v":0}]
["Testo standard mater-bi con indicazione COMUNE DI COSTA VOLPINO","Neutro/trasparente","42x42",21,26,241852,null,0]
[]
[{"$nulls":6},"TOTALE",{"$f":"SUM(H4:H25)+H40+H41","v":0}]